[Event "Titled Tuesday Blitz August 1 Early 2023"]
[White "Putri, Regita Desyari"]
[Black "Swicarz, Maciej"]
[WhiteFideId "7109083"]
[BlackFideId "1113585"]
[WhiteElo "2244"]
[BlackElo "2414"]
[Result "0-1"]
[Round "7"]
[TimeControl "180+1"]
[Date "2023.08.01"]
[WhiteClock "0:00:01"]
[BlackClock "0:01:44"]
[Board "151"]

1. d4 {[%clk 0:02:51]}  Nf6 {[%clk 0:02:59]} 2. c4 {[%clk 0:02:51]}  e6 {[%clk 0:02:59]} 3. Nf3 {[%clk 0:02:49]}  c5 {[%clk 0:02:58]} 4. d5 {[%clk 0:02:46]}  b5 {[%clk 0:02:58]} 5. dxe6 {[%clk 0:02:40]}  fxe6 {[%clk 0:02:59]} 6. cxb5 {[%clk 0:02:31]}  d5 {[%clk 0:02:59]} 7. e3 {[%clk 0:02:32]}  Bd6 {[%clk 0:02:59]} 8. b3 {[%clk 0:02:27]}  O-O {[%clk 0:02:57]} 9. Bb2 {[%clk 0:02:28]}  Nbd7 {[%clk 0:02:57]} 10. Be2 {[%clk 0:02:18]}  Bb7 {[%clk 0:02:57]} 11. O-O {[%clk 0:02:18]}  e5 {[%clk 0:02:55]} 12. g3 {[%clk 0:01:08]}  Qe7 {[%clk 0:02:48]} 13. Nh4 {[%clk 0:01:04]}  Qe6 {[%clk 0:02:45]} 14. Nd2 {[%clk 0:00:47]}  e4 {[%clk 0:02:40]} 15. Ng2 {[%clk 0:00:43]}  Be5 {[%clk 0:02:37]} 16. Bxe5 {[%clk 0:00:42]}  Nxe5 {[%clk 0:02:38]} 17. Nf4 {[%clk 0:00:41]}  Qf5 {[%clk 0:02:36]} 18. h4 {[%clk 0:00:26]}  d4 {[%clk 0:02:32]} 19. Rc1 {[%clk 0:00:25]}  Rac8 {[%clk 0:02:25]} 20. Re1 {[%clk 0:00:25]}  Nfg4 {[%clk 0:02:16]} 21. Nc4 {[%clk 0:00:17]}  Rfd8 {[%clk 0:02:06]} 22. Nxe5 {[%clk 0:00:15]}  Nxe5 {[%clk 0:02:07]} 23. exd4 {[%clk 0:00:11]}  cxd4 {[%clk 0:01:57]} 24. Rxc8 {[%clk 0:00:12]}  Qxc8 {[%clk 0:01:54]} 25. Bh5 {[%clk 0:00:03]}  g6 {[%clk 0:01:50]} 26. Be2 {[%clk 0:00:03]}  d3 {[%clk 0:01:50]} 27. Bf1 {[%clk 0:00:04]}  Nf3+ {[%clk 0:01:50]} 28. Kg2 {[%clk 0:00:04]}  Qg4 {[%clk 0:01:45]} 29. Re3 {[%clk 0:00:03]}  Nxh4+ {[%clk 0:01:44]} 30. Kg1 {[%clk 0:00:01]}  Qxd1 {[%clk 0:01:44]} 0-1


[Site "https://www.chess.com"]

[Event "Titled Tuesday Blitz August 1 Early 2023"]
[White "jimmy-schlumpf"]
[Black "Floresvillar Gonzalez, Luis Migu"]
[BlackFideId "5100542"]
[WhiteElo "2398"]
[BlackElo "2138"]
[Result "0-1"]
[Round "7"]
[TimeControl "180+1"]
[Date "2023.08.01"]
[WhiteClock "0:01:24"]
[BlackClock "0:01:23"]
[Board "153"]

1. Nf3 {[%clk 0:03:00]}  d5 {[%clk 0:02:59]} 2. g3 {[%clk 0:03:00]}  c6 {[%clk 0:02:55]} 3. Bg2 {[%clk 0:03:01]}  Bg4 {[%clk 0:02:55]} 4. O-O {[%clk 0:03:00]}  h5 {[%clk 0:02:55]} 5. d4 {[%clk 0:02:58]}  Nd7 {[%clk 0:02:51]} 6. Nbd2 {[%clk 0:02:53]}  e6 {[%clk 0:02:49]} 7. e4 {[%clk 0:02:52]}  dxe4 {[%clk 0:02:47]} 8. Nxe4 {[%clk 0:02:50]}  Ngf6 {[%clk 0:02:47]} 9. Bg5 {[%clk 0:02:48]}  Be7 {[%clk 0:02:47]} 10. Nxf6+ {[%clk 0:02:44]}  Bxf6 {[%clk 0:02:36]} 11. Bxf6 {[%clk 0:02:42]}  Nxf6 {[%clk 0:02:36]} 12. c3 {[%clk 0:02:42]}  h4 {[%clk 0:02:30]} 13. Qb3 {[%clk 0:02:36]}  hxg3 {[%clk 0:02:28]} 14. hxg3 {[%clk 0:02:34]}  Bxf3 {[%clk 0:02:18]} 15. Bxf3 {[%clk 0:02:31]}  Qc7 {[%clk 0:02:14]} 16. Kg2 {[%clk 0:02:27]}  O-O-O {[%clk 0:02:12]} 17. a4 {[%clk 0:02:21]}  Rh6 {[%clk 0:02:09]} 18. Rh1 {[%clk 0:02:19]}  Rdh8 {[%clk 0:02:08]} 19. Rxh6 {[%clk 0:02:19]}  Rxh6 {[%clk 0:02:08]} 20. a5 {[%clk 0:02:19]}  a6 {[%clk 0:02:07]} 21. Qb4 {[%clk 0:02:15]}  Qd8 {[%clk 0:01:47]} 22. Qc5 {[%clk 0:02:11]}  Nd5 {[%clk 0:01:43]} 23. c4 {[%clk 0:01:46]}  Nf6 {[%clk 0:01:26]} 24. Rd1 {[%clk 0:01:41]}  Nd7 {[%clk 0:01:24]} 25. Qg5 {[%clk 0:01:24]}  Qxg5 {[%clk 0:01:23]} 0-1


[Site "https://www.chess.com"]

[Event "Titled Tuesday Blitz August 1 Early 2023"]
[White "Atakhan, Abtin"]
[Black "sterpfi"]
[WhiteFideId "22502203"]
[WhiteElo "2764"]
[BlackElo "2210"]
[Result "1-0"]
[Round "7"]
[TimeControl "180+1"]
[Date "2023.08.01"]
[WhiteClock "0:02:08"]
[BlackClock "0:00:33"]
[Board "154"]

1. Nf3 {[%clk 0:03:00]}  d5 {[%clk 0:02:59]} 2. g3 {[%clk 0:03:00]}  c5 {[%clk 0:02:57]} 3. Bg2 {[%clk 0:03:00]}  Nc6 {[%clk 0:02:57]} 4. d4 {[%clk 0:03:01]}  Nf6 {[%clk 0:02:56]} 5. O-O {[%clk 0:03:00]}  e6 {[%clk 0:02:55]} 6. c4 {[%clk 0:03:00]}  dxc4 {[%clk 0:02:56]} 7. dxc5 {[%clk 0:03:00]}  Qxd1 {[%clk 0:02:52]} 8. Rxd1 {[%clk 0:03:01]}  Bxc5 {[%clk 0:02:52]} 9. Nbd2 {[%clk 0:03:02]}  c3 {[%clk 0:02:52]} 10. bxc3 {[%clk 0:03:03]}  O-O {[%clk 0:02:49]} 11. Nb3 {[%clk 0:03:03]}  Be7 {[%clk 0:02:49]} 12. a4 {[%clk 0:03:00]}  Bd7 {[%clk 0:02:44]} 13. c4 {[%clk 0:02:57]}  Rfc8 {[%clk 0:02:41]} 14. Ba3 {[%clk 0:02:47]}  Bxa3 {[%clk 0:02:09]} 15. Rxa3 {[%clk 0:02:48]}  Nb4 {[%clk 0:02:09]} 16. Ne5 {[%clk 0:02:42]}  Bc6 {[%clk 0:02:03]} 17. Nxc6 {[%clk 0:02:42]}  Nxc6 {[%clk 0:02:02]} 18. a5 {[%clk 0:02:33]}  Rab8 {[%clk 0:01:55]} 19. Nc5 {[%clk 0:02:25]}  Nd8 {[%clk 0:01:42]} 20. Rad3 {[%clk 0:02:12]}  g6 {[%clk 0:01:16]} 21. a6 {[%clk 0:02:11]}  bxa6 {[%clk 0:01:00]} 22. Nxa6 {[%clk 0:02:11]}  Nb7 {[%clk 0:00:43]} 23. Nxb8 {[%clk 0:02:10]}  Rxb8 {[%clk 0:00:33]} 24. Rb3 {[%clk 0:02:08]} 1-0


[Site "https://www.chess.com"]

[Event "Titled Tuesday Blitz August 1 Early 2023"]
[White "Shapiro, Daniel"]
[Black "Voege, Tobias"]
[WhiteFideId "2001780"]
[BlackFideId "1270513"]
[WhiteElo "2354"]
[BlackElo "2638"]
[Result "1/2-1/2"]
[Round "7"]
[TimeControl "180+1"]
[Date "2023.08.01"]
[WhiteClock "0:00:03"]
[BlackClock "0:00:07"]
[Board "155"]

1. d4 {[%clk 0:03:00]}  Nf6 {[%clk 0:02:58]} 2. c4 {[%clk 0:03:00]}  g6 {[%clk 0:02:58]} 3. Nc3 {[%clk 0:02:59]}  Bg7 {[%clk 0:02:59]} 4. e4 {[%clk 0:02:59]}  O-O {[%clk 0:02:58]} 5. Be2 {[%clk 0:02:59]}  d6 {[%clk 0:02:58]} 6. Nf3 {[%clk 0:02:59]}  e5 {[%clk 0:02:58]} 7. O-O {[%clk 0:02:59]}  Nc6 {[%clk 0:02:58]} 8. d5 {[%clk 0:02:59]}  Ne7 {[%clk 0:02:58]} 9. a4 {[%clk 0:03:00]}  a5 {[%clk 0:02:57]} 10. Ne1 {[%clk 0:02:58]}  Nd7 {[%clk 0:02:54]} 11. b3 {[%clk 0:02:57]}  f5 {[%clk 0:02:54]} 12. f3 {[%clk 0:02:57]}  f4 {[%clk 0:02:52]} 13. Nd3 {[%clk 0:02:56]}  g5 {[%clk 0:02:52]} 14. Ba3 {[%clk 0:02:55]}  b6 {[%clk 0:02:51]} 15. b4 {[%clk 0:02:55]}  axb4 {[%clk 0:02:48]} 16. Bxb4 {[%clk 0:02:56]}  Nc5 {[%clk 0:02:46]} 17. Nf2 {[%clk 0:02:54]}  h5 {[%clk 0:02:45]} 18. a5 {[%clk 0:02:54]}  bxa5 {[%clk 0:02:41]} 19. Bxa5 {[%clk 0:02:54]}  Kh7 {[%clk 0:02:31]} 20. Nb5 {[%clk 0:02:35]}  Na6 {[%clk 0:02:15]} 21. c5 {[%clk 0:02:35]}  dxc5 {[%clk 0:02:05]} 22. d6 {[%clk 0:02:35]}  Nc6 {[%clk 0:02:00]} 23. Nxc7 {[%clk 0:02:20]}  Nxc7 {[%clk 0:01:55]} 24. Bxc7 {[%clk 0:02:07]}  Rxa1 {[%clk 0:01:54]} 25. Qxa1 {[%clk 0:02:07]}  Qd7 {[%clk 0:01:55]} 26. Bb5 {[%clk 0:02:05]}  Bb7 {[%clk 0:01:54]} 27. Nd3 {[%clk 0:01:58]}  Ra8 {[%clk 0:01:44]} 28. Qb2 {[%clk 0:01:37]}  Qf7 {[%clk 0:01:33]} 29. Nxc5 {[%clk 0:01:32]}  Ra2 {[%clk 0:01:21]} 30. Qb1 {[%clk 0:01:23]}  Bc8 {[%clk 0:00:31]} 31. Bxc6 {[%clk 0:01:20]}  Qc4 {[%clk 0:00:31]} 32. Qxa2 {[%clk 0:00:40]}  Qxa2 {[%clk 0:00:32]} 33. d7 {[%clk 0:00:39]}  Bxd7 {[%clk 0:00:26]} 34. Bxd7 {[%clk 0:00:39]}  Bf8 {[%clk 0:00:17]} 35. Bf5+ {[%clk 0:00:36]}  Kh6 {[%clk 0:00:15]} 36. Ne6 {[%clk 0:00:31]}  Qa7+ {[%clk 0:00:15]} 37. Kh1 {[%clk 0:00:29]}  Bg7 {[%clk 0:00:15]} 38. h3 {[%clk 0:00:23]}  Bf6 {[%clk 0:00:15]} 39. Rd1 {[%clk 0:00:21]}  g4 {[%clk 0:00:14]} 40. hxg4 {[%clk 0:00:18]}  hxg4 {[%clk 0:00:15]} 41. Bxg4 {[%clk 0:00:19]}  Bh4 {[%clk 0:00:14]} 42. Bxe5 {[%clk 0:00:15]}  Bg3 {[%clk 0:00:14]} 43. Bxf4+ {[%clk 0:00:15]}  Bxf4 {[%clk 0:00:14]} 44. Nxf4 {[%clk 0:00:15]}  Qe3 {[%clk 0:00:14]} 45. Nh3 {[%clk 0:00:10]}  Qa3 {[%clk 0:00:12]} 46. Rd5 {[%clk 0:00:09]}  Kg7 {[%clk 0:00:11]} 47. Kh2 {[%clk 0:00:09]}  Kf6 {[%clk 0:00:11]} 48. Nf4 {[%clk 0:00:08]}  Qc1 {[%clk 0:00:10]} 49. Kg3 {[%clk 0:00:06]}  Qe1+ {[%clk 0:00:09]} 50. Kh2 {[%clk 0:00:06]}  Qc1 {[%clk 0:00:08]} 51. Nh3 {[%clk 0:00:05]}  Qc7+ {[%clk 0:00:07]} 52. Kh1 {[%clk 0:00:03]}  Qc1+ {[%clk 0:00:07]} 53. Kh2 {[%clk 0:00:04]}  Qc7+ {[%clk 0:00:07]} 54. Kg1 {[%clk 0:00:03]}  Qc1+ {[%clk 0:00:07]} 55. Kf2 {[%clk 0:00:03]}  Qb2+ {[%clk 0:00:07]} 56. Kg1 {[%clk 0:00:03]}  Qc1+ {[%clk 0:00:07]} 57. Kf2 {[%clk 0:00:03]}  Qb2+ {[%clk 0:00:07]} 58. Kg1 {[%clk 0:00:03]}  Qc1+ {[%clk 0:00:07]} 1/2-1/2


[Site "https://www.chess.com"]

[Event "Titled Tuesday Blitz August 1 Early 2023"]
[White "Hajiyev, Kanan"]
[Black "Elissalt Cardenas, Hector"]
[WhiteFideId "13404148"]
[BlackFideId "3500632"]
[WhiteElo "2550"]
[BlackElo "2348"]
[Result "1-0"]
[Round "7"]
[TimeControl "180+1"]
[Date "2023.08.01"]
[WhiteClock "0:02:54"]
[BlackClock "0:01:41"]
[Board "156"]

1. d4 {[%clk 0:03:00]}  d5 {[%clk 0:02:59]} 2. c4 {[%clk 0:03:01]}  e6 {[%clk 0:02:58]} 3. cxd5 {[%clk 0:03:02]}  exd5 {[%clk 0:02:58]} 4. Nc3 {[%clk 0:03:03]}  Nf6 {[%clk 0:02:58]} 5. Nf3 {[%clk 0:03:04]}  c6 {[%clk 0:02:58]} 6. Qc2 {[%clk 0:03:04]}  Be7 {[%clk 0:02:57]} 7. Bf4 {[%clk 0:03:04]}  Nbd7 {[%clk 0:02:54]} 8. e3 {[%clk 0:03:04]}  Nf8 {[%clk 0:02:54]} 9. h3 {[%clk 0:03:04]}  Ne6 {[%clk 0:02:54]} 10. Bh2 {[%clk 0:03:05]}  O-O {[%clk 0:02:49]} 11. Bd3 {[%clk 0:03:05]}  c5 {[%clk 0:02:45]} 12. O-O {[%clk 0:03:01]}  c4 {[%clk 0:02:33]} 13. Be2 {[%clk 0:03:02]}  a6 {[%clk 0:02:31]} 14. a4 {[%clk 0:03:02]}  b6 {[%clk 0:02:20]} 15. Ne5 {[%clk 0:03:02]}  Bb7 {[%clk 0:02:19]} 16. f4 {[%clk 0:03:02]}  Nc7 {[%clk 0:02:13]} 17. Bf3 {[%clk 0:03:01]}  Nce8 {[%clk 0:02:12]} 18. Nxc4 {[%clk 0:03:01]}  Rc8 {[%clk 0:02:07]} 19. Ne5 {[%clk 0:03:00]}  Nd6 {[%clk 0:02:07]} 20. Qf2 {[%clk 0:03:00]}  Nde4 {[%clk 0:01:53]} 21. Bxe4 {[%clk 0:03:00]}  Nxe4 {[%clk 0:01:53]} 22. Nxe4 {[%clk 0:03:00]}  dxe4 {[%clk 0:01:53]} 23. Rac1 {[%clk 0:02:58]}  Bd5 {[%clk 0:01:49]} 24. Rxc8 {[%clk 0:02:53]}  Qxc8 {[%clk 0:01:48]} 25. Qd2 {[%clk 0:02:54]}  Qd7 {[%clk 0:01:41]} 26. Nxd7 {[%clk 0:02:54]} 1-0


[Site "https://www.chess.com"]

[Event "Titled Tuesday Blitz August 1 Early 2023"]
[White "Porter, Ryan W"]
[Black "Nithyalakshmi, Sivanesan"]
[WhiteFideId "2011239"]
[BlackFideId "5706955"]
[WhiteElo "2529"]
[BlackElo "2347"]
[Result "0-1"]
[Round "7"]
[TimeControl "180+1"]
[Date "2023.08.01"]
[WhiteClock "0:00:00"]
[BlackClock "0:00:13"]
[Board "157"]

1. e4 {[%clk 0:03:00]}  e6 {[%clk 0:02:59]} 2. Nf3 {[%clk 0:03:00]}  d5 {[%clk 0:02:59]} 3. e5 {[%clk 0:03:00]}  Bd7 {[%clk 0:02:56]} 4. d4 {[%clk 0:02:56]}  a6 {[%clk 0:02:56]} 5. c3 {[%clk 0:02:54]}  Bb5 {[%clk 0:02:56]} 6. Bxb5+ {[%clk 0:02:53]}  axb5 {[%clk 0:02:56]} 7. O-O {[%clk 0:02:51]}  Nd7 {[%clk 0:02:54]} 8. Re1 {[%clk 0:02:46]}  Nb6 {[%clk 0:02:52]} 9. Qd3 {[%clk 0:02:36]}  c6 {[%clk 0:02:51]} 10. Bg5 {[%clk 0:02:26]}  Be7 {[%clk 0:02:51]} 11. Bf4 {[%clk 0:02:24]}  g5 {[%clk 0:02:49]} 12. Be3 {[%clk 0:02:16]}  h5 {[%clk 0:02:49]} 13. Nfd2 {[%clk 0:02:06]}  g4 {[%clk 0:02:45]} 14. f3 {[%clk 0:02:00]}  Nh6 {[%clk 0:02:31]} 15. Rf1 {[%clk 0:01:44]}  Nf5 {[%clk 0:02:29]} 16. Bf2 {[%clk 0:01:05]}  Rg8 {[%clk 0:02:28]} 17. f4 {[%clk 0:01:04]}  g3 {[%clk 0:02:26]} 18. Bxg3 {[%clk 0:01:02]}  Nxg3 {[%clk 0:02:22]} 19. hxg3 {[%clk 0:01:03]}  h4 {[%clk 0:02:22]} 20. Rf3 {[%clk 0:01:00]}  Rg4 {[%clk 0:02:01]} 21. Nf1 {[%clk 0:00:57]}  Kd7 {[%clk 0:01:48]} 22. f5 {[%clk 0:00:46]}  Qg8 {[%clk 0:01:32]} 23. f6 {[%clk 0:00:46]}  Bf8 {[%clk 0:01:30]} 24. Nbd2 {[%clk 0:00:42]}  Bh6 {[%clk 0:01:28]} 25. Nb3 {[%clk 0:00:40]}  hxg3 {[%clk 0:01:23]} 26. Rxg3 {[%clk 0:00:30]}  Bf4 {[%clk 0:01:21]} 27. Rxg4 {[%clk 0:00:26]}  Qxg4 {[%clk 0:01:20]} 28. Qf3 {[%clk 0:00:18]}  Qg5 {[%clk 0:01:11]} 29. Kf2 {[%clk 0:00:14]}  Qh6 {[%clk 0:00:48]} 30. Nc5+ {[%clk 0:00:12]}  Kc7 {[%clk 0:00:47]} 31. Nd3 {[%clk 0:00:12]}  Bg5 {[%clk 0:00:45]} 32. Ne3 {[%clk 0:00:07]}  Rg8 {[%clk 0:00:39]} 33. Rg1 {[%clk 0:00:06]}  Qh2 {[%clk 0:00:37]} 34. Ng4 {[%clk 0:00:04]}  Bh4+ {[%clk 0:00:37]} 35. Kf1 {[%clk 0:00:04]}  Qg3 {[%clk 0:00:33]} 36. Qxg3 {[%clk 0:00:04]}  Bxg3 {[%clk 0:00:33]} 37. Ne3 {[%clk 0:00:03]}  Bh4 {[%clk 0:00:25]} 38. Rh1 {[%clk 0:00:02]}  Bg5 {[%clk 0:00:25]} 39. Nd1 {[%clk 0:00:01]}  Kd7 {[%clk 0:00:19]} 40. Rh2 {[%clk 0:00:01]}  Ra8 {[%clk 0:00:15]} 41. Rh7 {[%clk 0:00:01]}  Rf8 {[%clk 0:00:14]} 42. a3 {[%clk 0:00:01]}  Nc4 {[%clk 0:00:14]} 43. Ke2 {[%clk 0:00:01]}  Ke8 {[%clk 0:00:13]} 44. Nc5 {[%clk 0:00:00]}  b6 {[%clk 0:00:13]} 0-1


[Site "https://www.chess.com"]

[Event "Titled Tuesday Blitz August 1 Early 2023"]
[White "Nurgaliyeva, Zarina"]
[Black "Bashirli, Saadat"]
[WhiteFideId "13730096"]
[BlackFideId "13429990"]
[WhiteElo "2528"]
[BlackElo "2343"]
[Result "1-0"]
[Round "7"]
[TimeControl "180+1"]
[Date "2023.08.01"]
[WhiteClock "0:00:30"]
[BlackClock "0:00:05"]
[Board "158"]

1. e4 {[%clk 0:03:00]}  e5 {[%clk 0:02:56]} 2. Nf3 {[%clk 0:02:58]}  Nc6 {[%clk 0:02:56]} 3. Nc3 {[%clk 0:02:58]}  Bc5 {[%clk 0:02:55]} 4. Nxe5 {[%clk 0:02:56]}  Nxe5 {[%clk 0:02:53]} 5. d4 {[%clk 0:02:56]}  Bxd4 {[%clk 0:02:48]} 6. Qxd4 {[%clk 0:02:57]}  d6 {[%clk 0:02:48]} 7. Be3 {[%clk 0:02:53]}  Nf6 {[%clk 0:02:46]} 8. h3 {[%clk 0:02:51]}  Be6 {[%clk 0:02:44]} 9. O-O-O {[%clk 0:02:50]}  Qd7 {[%clk 0:02:43]} 10. Bb5 {[%clk 0:02:45]}  Nc6 {[%clk 0:02:40]} 11. Bxc6 {[%clk 0:02:43]}  Qxc6 {[%clk 0:02:41]} 12. f4 {[%clk 0:02:43]}  O-O-O {[%clk 0:02:39]} 13. g4 {[%clk 0:02:40]}  Rhg8 {[%clk 0:02:29]} 14. g5 {[%clk 0:02:32]}  Ne8 {[%clk 0:02:23]} 15. Qxa7 {[%clk 0:02:31]}  b6 {[%clk 0:02:17]} 16. f5 {[%clk 0:02:13]}  Bc4 {[%clk 0:02:10]} 17. b3 {[%clk 0:02:08]}  Bxb3 {[%clk 0:02:07]} 18. axb3 {[%clk 0:01:47]}  Qxc3 {[%clk 0:02:04]} 19. Bd4 {[%clk 0:01:34]}  Qc6 {[%clk 0:02:00]} 20. Kb2 {[%clk 0:01:34]}  Qxe4 {[%clk 0:01:57]} 21. Rhe1 {[%clk 0:01:24]}  Qb7 {[%clk 0:01:56]} 22. Qa4 {[%clk 0:01:21]}  c6 {[%clk 0:01:43]} 23. Re2 {[%clk 0:01:14]}  Nc7 {[%clk 0:01:25]} 24. Rde1 {[%clk 0:01:13]}  Rge8 {[%clk 0:01:20]} 25. Bxg7 {[%clk 0:01:10]}  Kd7 {[%clk 0:01:10]} 26. Qc4 {[%clk 0:00:51]}  d5 {[%clk 0:01:04]} 27. Qd4 {[%clk 0:00:50]}  Qa6 {[%clk 0:00:46]} 28. Rxe8 {[%clk 0:00:45]}  Rxe8 {[%clk 0:00:47]} 29. Ra1 {[%clk 0:00:45]}  Qb7 {[%clk 0:00:33]} 30. Qf6 {[%clk 0:00:45]}  Kc8 {[%clk 0:00:17]} 31. Qxf7 {[%clk 0:00:44]}  Rd8 {[%clk 0:00:12]} 32. Be5 {[%clk 0:00:43]}  Nb5 {[%clk 0:00:09]} 33. Qe6+ {[%clk 0:00:41]}  Qd7 {[%clk 0:00:09]} 34. Bf6 {[%clk 0:00:33]}  Re8 {[%clk 0:00:07]} 35. Ra8+ {[%clk 0:00:31]}  Kc7 {[%clk 0:00:05]} 36. Rxe8 {[%clk 0:00:30]} 1-0


[Site "https://www.chess.com"]

[Event "Titled Tuesday Blitz August 1 Early 2023"]
[White "Eynullayev, Altay"]
[Black "AndresDelgado77"]
[WhiteFideId "13413562"]
[WhiteElo "2518"]
[BlackElo "2333"]
[Result "1-0"]
[Round "7"]
[TimeControl "180+1"]
[Date "2023.08.01"]
[WhiteClock "0:00:20"]
[BlackClock "0:00:00"]
[Board "159"]

1. e4 {[%clk 0:03:00]}  e6 {[%clk 0:02:59]} 2. d4 {[%clk 0:02:57]}  d5 {[%clk 0:02:58]} 3. e5 {[%clk 0:02:57]}  c5 {[%clk 0:02:57]} 4. c3 {[%clk 0:02:57]}  Qb6 {[%clk 0:02:57]} 5. Nf3 {[%clk 0:02:58]}  Nc6 {[%clk 0:02:57]} 6. a3 {[%clk 0:02:58]}  a5 {[%clk 0:02:56]} 7. Bd3 {[%clk 0:02:52]}  Bd7 {[%clk 0:02:56]} 8. Bc2 {[%clk 0:02:52]}  a4 {[%clk 0:02:56]} 9. O-O {[%clk 0:02:52]}  Nh6 {[%clk 0:02:54]} 10. Re1 {[%clk 0:02:40]}  Nf5 {[%clk 0:02:47]} 11. Bxf5 {[%clk 0:02:37]}  exf5 {[%clk 0:02:42]} 12. c4 {[%clk 0:02:17]}  Be6 {[%clk 0:01:14]} 13. cxd5 {[%clk 0:01:48]}  Bxd5 {[%clk 0:01:13]} 14. dxc5 {[%clk 0:01:44]}  Qxc5 {[%clk 0:00:29]} 15. Be3 {[%clk 0:01:42]}  Qa5 {[%clk 0:00:27]} 16. Nc3 {[%clk 0:01:42]}  Bb3 {[%clk 0:00:24]} 17. Qd3 {[%clk 0:01:36]}  g6 {[%clk 0:00:20]} 18. Nb5 {[%clk 0:00:54]}  Rd8 {[%clk 0:00:16]} 19. Nd6+ {[%clk 0:00:51]}  Bxd6 {[%clk 0:00:15]} 20. exd6 {[%clk 0:00:51]}  O-O {[%clk 0:00:15]} 21. Bh6 {[%clk 0:00:52]}  Be6 {[%clk 0:00:08]} 22. Ng5 {[%clk 0:00:48]}  Qc5 {[%clk 0:00:06]} 23. Rxe6 {[%clk 0:00:20]}  fxe6 {[%clk 0:00:05]} 24. Nxe6 {[%clk 0:00:21]}  Qxd6 {[%clk 0:00:05]} 25. Qxd6 {[%clk 0:00:22]}  Rxd6 {[%clk 0:00:04]} 26. Nxf8 {[%clk 0:00:22]}  Nd4 {[%clk 0:00:04]} 27. Re1 {[%clk 0:00:21]}  Ne2+ {[%clk 0:00:00]} 28. Kf1 {[%clk 0:00:20]} 1-0


[Site "https://www.chess.com"]

[Event "Titled Tuesday Blitz August 1 Early 2023"]
[White "Gueci, Tea"]
[Black "Malka, Samuel"]
[WhiteFideId "872342"]
[BlackFideId "20643675"]
[WhiteElo "2332"]
[BlackElo "2498"]
[Result "0-1"]
[Round "7"]
[TimeControl "180+1"]
[Date "2023.08.01"]
[WhiteClock "0:01:00"]
[BlackClock "0:01:16"]
[Board "160"]

1. e4 {[%clk 0:03:00]}  c5 {[%clk 0:02:57]} 2. Nf3 {[%clk 0:03:00]}  Nc6 {[%clk 0:02:57]} 3. Nc3 {[%clk 0:02:59]}  g6 {[%clk 0:02:56]} 4. g3 {[%clk 0:03:00]}  Bg7 {[%clk 0:02:56]} 5. Bg2 {[%clk 0:03:00]}  d6 {[%clk 0:02:55]} 6. O-O {[%clk 0:03:00]}  Rb8 {[%clk 0:02:50]} 7. h3 {[%clk 0:02:54]}  Nf6 {[%clk 0:02:45]} 8. a4 {[%clk 0:02:51]}  Nd7 {[%clk 0:02:43]} 9. Ne2 {[%clk 0:02:43]}  a6 {[%clk 0:02:37]} 10. c3 {[%clk 0:02:43]}  Nde5 {[%clk 0:02:25]} 11. Nxe5 {[%clk 0:02:34]}  dxe5 {[%clk 0:02:25]} 12. d3 {[%clk 0:02:25]}  O-O {[%clk 0:02:22]} 13. Be3 {[%clk 0:02:25]}  b6 {[%clk 0:02:22]} 14. Qd2 {[%clk 0:02:23]}  Na5 {[%clk 0:02:09]} 15. Qc2 {[%clk 0:02:09]}  Be6 {[%clk 0:02:05]} 16. Nc1 {[%clk 0:01:56]}  Qd6 {[%clk 0:01:58]} 17. Kh2 {[%clk 0:01:43]}  Rfd8 {[%clk 0:01:58]} 18. Rb1 {[%clk 0:01:39]}  Nc6 {[%clk 0:01:54]} 19. b3 {[%clk 0:01:35]}  b5 {[%clk 0:01:53]} 20. axb5 {[%clk 0:01:34]}  axb5 {[%clk 0:01:54]} 21. Ra1 {[%clk 0:01:28]}  Ra8 {[%clk 0:01:54]} 22. Rxa8 {[%clk 0:01:26]}  Rxa8 {[%clk 0:01:55]} 23. Ne2 {[%clk 0:01:22]}  Ra3 {[%clk 0:01:42]} 24. Rb1 {[%clk 0:01:22]}  b4 {[%clk 0:01:41]} 25. c4 {[%clk 0:01:21]}  Nd4 {[%clk 0:01:40]} 26. Bxd4 {[%clk 0:01:19]}  exd4 {[%clk 0:01:40]} 27. f4 {[%clk 0:01:18]}  Qa6 {[%clk 0:01:37]} 28. Ng1 {[%clk 0:01:12]}  Bd7 {[%clk 0:01:28]} 29. Nf3 {[%clk 0:01:10]}  Bc6 {[%clk 0:01:24]} 30. Qd2 {[%clk 0:01:05]}  Ra2 {[%clk 0:01:20]} 31. Rb2 {[%clk 0:01:05]}  Ra1 {[%clk 0:01:20]} 32. Qc2 {[%clk 0:01:03]}  Qa3 {[%clk 0:01:17]} 33. Rb1 {[%clk 0:01:02]}  Ra2 {[%clk 0:01:17]} 34. Rb2 {[%clk 0:01:00]}  Qxb2 {[%clk 0:01:16]} 0-1


[Site "https://www.chess.com"]

[Event "Titled Tuesday Blitz August 1 Early 2023"]
[White "Valle Maytin, Luis Enrique"]
[Black "Rodchenkov, Sergey D."]
[WhiteFideId "3503666"]
[BlackFideId "4168712"]
[WhiteElo "2329"]
[BlackElo "2497"]
[Result "0-1"]
[Round "7"]
[TimeControl "180+1"]
[Date "2023.08.01"]
[WhiteClock "0:00:05"]
[BlackClock "0:00:28"]
[Board "161"]

1. d4 {[%clk 0:03:00]}  d5 {[%clk 0:02:59]} 2. Nf3 {[%clk 0:03:01]}  Nf6 {[%clk 0:03:00]} 3. e3 {[%clk 0:03:01]}  c5 {[%clk 0:02:59]} 4. Bd3 {[%clk 0:03:00]}  cxd4 {[%clk 0:02:58]} 5. exd4 {[%clk 0:03:00]}  g6 {[%clk 0:02:59]} 6. c3 {[%clk 0:03:00]}  Bg7 {[%clk 0:03:00]} 7. Bf4 {[%clk 0:03:00]}  O-O {[%clk 0:03:00]} 8. Nbd2 {[%clk 0:03:00]}  Nc6 {[%clk 0:03:01]} 9. O-O {[%clk 0:03:01]}  Bf5 {[%clk 0:02:58]} 10. Bxf5 {[%clk 0:03:00]}  gxf5 {[%clk 0:02:59]} 11. h3 {[%clk 0:02:59]}  e6 {[%clk 0:02:59]} 12. Re1 {[%clk 0:02:58]}  Ne4 {[%clk 0:02:59]} 13. Nf1 {[%clk 0:02:39]}  Bf6 {[%clk 0:02:50]} 14. N3d2 {[%clk 0:02:35]}  Kh8 {[%clk 0:02:49]} 15. f3 {[%clk 0:02:33]}  Nd6 {[%clk 0:02:49]} 16. Ne3 {[%clk 0:02:20]}  Rg8 {[%clk 0:02:49]} 17. Kh2 {[%clk 0:02:17]}  Bg5 {[%clk 0:02:46]} 18. Bxg5 {[%clk 0:02:06]}  Qxg5 {[%clk 0:02:47]} 19. Qe2 {[%clk 0:01:59]}  Rg7 {[%clk 0:02:46]} 20. g4 {[%clk 0:01:55]}  Rag8 {[%clk 0:02:44]} 21. Rg1 {[%clk 0:01:54]}  f4 {[%clk 0:02:18]} 22. Ng2 {[%clk 0:01:49]}  Nf5 {[%clk 0:01:41]} 23. Nb3 {[%clk 0:01:35]}  h5 {[%clk 0:01:30]} 24. Nc5 {[%clk 0:00:58]}  Rh7 {[%clk 0:01:15]} 25. Nd3 {[%clk 0:00:12]}  hxg4 {[%clk 0:01:11]} 26. fxg4 {[%clk 0:00:11]}  Rxh3+ {[%clk 0:00:29]} 27. Kxh3 {[%clk 0:00:12]}  Qh6+ {[%clk 0:00:29]} 28. Nh4 {[%clk 0:00:13]}  Qxh4+ {[%clk 0:00:30]} 29. Kg2 {[%clk 0:00:13]}  Rxg4+ {[%clk 0:00:30]} 30. Kf1 {[%clk 0:00:10]}  Ne3+ {[%clk 0:00:30]} 31. Qxe3 {[%clk 0:00:07]}  fxe3 {[%clk 0:00:31]} 32. Rxg4 {[%clk 0:00:06]}  Qxg4 {[%clk 0:00:32]} 33. Re1 {[%clk 0:00:05]}  Qf3+ {[%clk 0:00:28]} 34. Kg1 {[%clk 0:00:05]}  f5 {[%clk 0:00:29]} 35. Rf1 {[%clk 0:00:04]}  Qg3+ {[%clk 0:00:28]} 36. Kh1 {[%clk 0:00:05]}  e2 {[%clk 0:00:29]} 37. Rg1 {[%clk 0:00:05]}  Qh3# {[%clk 0:00:28]} 0-1


[Site "https://www.chess.com"]